bitfinex/quotes_ETHUSD_20250131
["timestamp","ask_amount","ask_price","bid_price","bid_amount"]
[1738329122883,9.0196786,3359.7,3359.6,0.08666961]
[1738329124097,0.1696786,3359.7,3359.6,3.08666961]
[1738329124419,0.1696786,3359.7,3359.6,4.43086329]
[1738329124565,0.1696786,3359.7,3359.6,4.46062294]
[1738329124766,0.1696786,3359.7,3359.6,4.43086329]
[1738329125289,0.1696786,3359.7,3359.6,5.0106229]
[1738329125981,0.1696786,3359.7,3359.6,4.98086329]
[1738329126553,0.1696786,3359.7,3359.6,4.43086329]
[1738329127866,0.1696786,3359.7,3359.6,4.46062344]
[1738329128071,0.1696786,3359.7,3359.6,4.43086329]
[1738329128402,0.1696786,3359.7,3359.6,4.46062344]
[1738329131024,0.1696786,3359.7,3359.6,4.46062167]
[1738329131174,0.1696786,3359.7,3359.6,5.01062167]
[1738329131596,0.1696786,3359.7,3359.6,4.98086329]
[1738329131927,0.1696786,3359.7,3359.6,4.43086329]
[1738329132145,0.1696786,3359.7,3359.6,4.46062185]
[1738329132729,0.1696786,3359.7,3359.6,5.01812189]
[1738329132933,0.1696786,3359.7,3359.6,4.98836329]
[1738329133256,0.1696786,3359.7,3359.6,4.98086329]
[1738329133607,0.1696786,3359.7,3359.6,5.01062061]
[1738329134019,3.766553,3360.0,3359.7,0.55]
[1738329134243,0.005,3360.7,3360.3,0.0075]
[1738329134397,0.005,3360.9,3360.8,6.25650367]
[1738329134598,0.63997944,3362.8,3360.9,0.7947]
[1738329134814,0.55,3362.6,3361.6,2.70650367]
[1738329135013,0.02979098,3362.5,3361.7,0.08409115]
[1738329135196,0.6159658,3362.7,3361.9,2.70650367]
[1738329135539,0.1696786,3363.0,3361.2,3.0]
[1738329135540,0.1696786,3363.0,3362.5,2.70650367]
[1738329135709,0.1696786,3363.0,3362.9,2.70650367]
[1738329135911,0.1696786,3363.0,3362.9,5.70650367]
[1738329136109,0.1696786,3363.0,3362.9,5.78963026]
[1738329136309,0.09238565,3364.4,3363.3,0.55]
[1738329136523,0.09238565,3364.4,3364.1,2.70650367]
[1738329136848,0.09238565,3364.4,3363.2,2.70650367]
[1738329137012,0.02979098,3364.3,3363.6,3.0]
[1738329137221,0.09238565,3364.4,3364.1,3.0]
[1738329137413,0.09238565,3364.4,3364.0,2.70650367]
[1738329137617,0.7657,3364.3,3364.1,0.08194584]
[1738329137818,0.7657,3364.3,3363.7,2.70650367]
[1738329137997,0.7657,3364.3,3363.8,0.08194584]
[1738329138334,0.02979098,3364.2,3363.4,2.70650367]
[1738329138532,0.79549098,3364.3,3363.9,0.08181564]
[1738329138704,0.0075,3364.2,3363.1,3.46225306]
[1738329138906,0.02979098,3364.1,3363.1,3.46225306]
[1738329139157,0.015,3364.0,3363.2,0.07889366]
[1738329139315,0.1489793,3364.1,3363.2,0.07889366]
[1738329139504,0.1489793,3364.1,3363.1,3.46225306]
[1738329139505,0.17877028,3364.1,3363.1,3.46225306]
[1738329139706,0.17877028,3364.1,3363.3,0.07889366]
[1738329139908,0.0075,3363.9,3363.1,3.46225306]
[1738329140153,0.03729098,3363.9,3363.4,0.07889366]
[1738329140355,0.0075,3363.6,3362.7,3.46225306]
[1738329140506,0.02979098,3363.6,3363.5,0.07889366]
[1738329140707,0.8306,3363.7,3362.8,0.02973487]
[1738329140920,0.0075,3363.5,3362.3,3.46225306]
[1738329141156,0.015,3363.3,3362.9,0.07549433]
[1738329141359,0.59479098,3363.3,3361.9,3.46225306]
[1738329141511,0.55,3363.1,3363.0,0.07555065]
[1738329141704,0.55,3363.1,3361.5,3.46225306]
[1738329141705,0.848,3363.0,3361.5,3.46225306]
[1738329141949,0.0075,3362.8,3361.6,0.02974303]
[1738329142252,0.0075,3362.8,3361.6,0.07273301]
[1738329142461,0.015,3362.8,3361.6,0.07273301]
[1738329142619,0.19778359,3362.9,3361.6,0.07273301]
[1738329142808,0.19778359,3362.9,3361.7,0.02974374]
[1738329143008,0.18254187,3362.8,3361.5,3.46225306]
[1738329143224,0.03729098,3362.7,3361.6,0.07273301]
[1738329143964,0.833,3363.0,3362.3,3.46225306]
[1738329144121,0.833,3363.0,3361.7,0.02974355]
[1738329144122,0.833,3363.0,3362.4,0.02973659]
[1738329144323,0.59044057,3363.7,3362.1,0.02973634]
[1738329144324,0.02979098,3363.6,3362.1,0.02973634]
[1738329144613,0.7737,3363.7,3362.5,0.07273301]
[1738329144774,0.7737,3363.7,3362.3,0.02973197]
[1738329144933,0.0075,3363.6,3362.6,0.07273301]
[1738329145139,0.0075,3363.6,3362.1,0.0297334]
[1738329145453,0.015,3363.6,3362.1,0.0297334]
[1738329145653,0.04479098,3363.6,3362.2,0.45729635]
[1738329145961,0.04479098,3363.6,3362.2,0.07273301]
[1738329146140,0.04479098,3363.6,3362.3,0.02973473]
[1738329146320,0.04479098,3363.6,3362.2,0.07273301]
[1738329146528,3.50704404,3363.6,3361.5,1.92079219]
[1738329146826,0.0075,3363.4,3361.6,0.56804218]
[1738329147027,0.0075,3363.3,3361.7,0.07273301]
[1738329147226,0.0075,3363.3,3361.9,3.0]
[1738329147445,0.0075,3363.4,3362.0,0.02973593]
[1738329147766,0.015,3363.4,3362.1,0.07273301]
[1738329147924,0.015,3363.4,3362.2,0.02973612]
[1738329148126,0.04479098,3363.4,3362.2,0.02973612]
[1738329148368,0.015,3363.4,3362.2,0.02973612]
[1738329148577,0.04479098,3363.4,3362.3,0.07273301]
[1738329148779,0.015,3363.4,3362.4,0.02973626]
[1738329149079,0.04479098,3363.4,3362.1,0.6564722]
[1738329149281,0.04479098,3363.4,3362.5,0.07273301]
[1738329149589,0.0075,3363.4,3362.2,0.39538348]
[1738329149746,0.0075,3363.4,3362.6,0.07273301]
[1738329149949,0.0075,3363.4,3362.2,0.39538348]
[1738329150381,3.46225306,3363.2,3362.3,0.07273301]
[1738329150585,0.803,3362.5,3362.3,0.07273301]
[1738329150894,0.015,3362.1,3360.3,0.0297479]
[1738329151077,0.04479098,3362.1,3360.4,0.4323001]
[1738329151285,0.0075,3361.9,3360.5,0.06578206]
[1738329151435,0.0075,3361.7,3360.5,0.06578206]
[1738329151636,0.0075,3361.6,3360.2,0.831]
[1738329151831,0.0075,3361.6,3360.3,0.06578206]
[1738329152052,0.0075,3361.6,3360.4,0.0297526]
[1738329152231,0.7843,3361.8,3360.4,0.0297526]
[1738329152449,0.7843,3361.8,3360.5,0.06578206]
[1738329152652,0.8077,3362.5,3361.1,3.55]
[1738329152881,0.8077,3362.5,3361.2,0.09589137]
[1738329155055,0.8077,3362.5,3361.3,0.55]
[1738329155378,0.0075,3362.4,3361.4,0.46032696]
[1738329155580,0.04479098,3362.4,3361.4,0.06599886]
[1738329155954,0.04479098,3362.4,3360.7,3.8311]
[1738329156285,0.04479098,3362.4,3360.8,0.09553361]
[1738329156448,0.04479098,3362.4,3360.8,0.0657864]
[1738329156647,0.0075,3362.2,3360.8,0.0657864]
[1738329156973,0.0075,3362.1,3360.9,0.02974944]
[1738329157283,0.03729098,3362.1,3360.9,0.02974944]
[1738329157466,0.0075,3362.1,3361.0,0.0657864]
[1738329157642,0.03729098,3362.1,3360.7,0.8311]
[1738329157849,0.0075,3361.9,3360.8,0.0657864]
[1738329158059,0.0075,3361.9,3360.5,0.02974988]
[1738329158259,0.0075,3361.9,3360.6,0.0657864]
[1738329158467,0.0075,3361.9,3360.7,0.02975077]
[1738329158994,0.0075,3361.9,3360.8,0.0657864]
[1738329159486,0.0075,3361.9,3360.8,0.09553663]
[1738329159897,0.7701,3362.0,3360.8,0.09553663]
[1738329160651,0.015,3362.3,3360.9,0.7945]
[1738329160851,0.565,3362.3,3361.0,0.41875108]
[1738329161098,0.015,3362.1,3361.1,0.0657864]
[1738329161250,0.015,3362.1,3361.1,0.09553698]
[1738329161451,0.7658,3362.7,3361.2,0.7828]
[1738329161652,0.02979098,3362.6,3361.3,0.06665791]
[1738329161873,0.015,3362.3,3361.3,0.06665791]
[1738329162099,0.015,3362.1,3361.1,0.02974749]
[1738329162310,0.04479098,3362.1,3361.4,0.06665791]
[1738329162598,0.04479098,3362.1,3360.7,3.7828]
[1738329162599,0.04479098,3362.1,3360.8,0.02974752]
[1738329162796,0.04479098,3362.1,3360.9,0.72748006]
[1738329163108,0.04479098,3362.1,3361.0,0.02974815]
[1738329163524,0.015,3362.1,3361.0,0.02974815]
[1738329163695,0.015,3362.1,3361.1,0.06665791]
[1738329163897,0.04479098,3362.1,3361.1,0.06665791]
[1738329164444,0.015,3362.1,3360.9,0.75723078]
[1738329164728,0.015,3362.1,3361.0,0.45400308]
[1738329164922,0.015,3362.1,3361.0,0.52066099]
[1738329165227,0.015,3362.1,3361.1,0.02975068]
[1738329165524,0.04479098,3362.1,3361.0,0.45400308]
[1738329165690,0.04479098,3362.1,3361.2,0.06665791]
[1738329166029,0.04479098,3362.1,3360.7,3.81255055]
[1738329166030,0.0075,3361.9,3361.3,0.06665791]
[1738329166230,0.015,3361.6,3360.3,0.8008]
[1738329166538,0.015,3361.6,3360.4,0.09641109]
[1738329166539,0.04479098,3361.6,3360.4,0.09641109]
[1738329166682,0.04479098,3361.6,3360.5,0.73594642]
[1738329167205,0.015,3361.6,3360.6,0.06665791]
[1738329167723,0.04479098,3361.6,3360.6,0.06665791]
[1738329168221,0.015,3361.4,3360.6,0.06665791]
[1738329168383,0.04479098,3361.4,3359.9,3.8166]
[1738329168582,0.04479098,3361.4,3360.0,0.72788531]
[1738329168821,0.015,3361.2,3360.0,0.79454322]
[1738329169026,0.04479098,3361.2,3360.0,0.79454322]
[1738329169226,0.015,3361.2,3360.0,0.82430021]
[1738329169397,0.015,3361.2,3360.1,0.81031533]
[1738329169754,0.015,3361.2,3360.2,0.02975699]
[1738329170028,0.8033,3362.3,3360.7,0.7943]
[1738329170179,0.02979098,3362.2,3360.7,3.82405087]
[1738329170383,0.8183,3362.1,3360.3,0.7943]
[1738329170684,0.0075,3361.8,3360.4,0.50668684]
[1738329170911,0.0075,3361.7,3360.5,0.06665791]
[1738329171107,0.0075,3361.3,3360.5,0.06665791]
[1738329171308,0.03729098,3361.3,3360.5,0.06665791]
[1738329171509,0.7997,3361.8,3360.6,0.02975478]
[1738329171786,0.82949098,3361.8,3360.6,0.46949473]
[1738329171986,0.0075,3362.1,3360.8,3.8073]
[1738329171987,0.8033,3362.1,3360.8,3.8073]
[1738329172221,0.8033,3362.1,3360.9,0.02974804]
[1738329172532,0.8033,3362.1,3361.0,0.0669182]
[1738329172728,0.7958,3362.1,3361.1,0.02974771]
[1738329173230,0.8406,3362.4,3361.1,0.03448364]
[1738329173395,0.8406,3362.4,3361.2,0.07849429]
[1738329173599,0.011,3374.7,3361.2,0.07849429]
[1738329173600,0.21,3363.0,3361.3,0.84964728]
[1738329173909,0.0075,3362.9,3361.4,0.80528177]
[1738329174114,0.03729098,3362.9,3361.4,0.81355839]
[1738329174315,0.8285,3362.8,3361.5,0.46334584]
[1738329174510,0.8285,3362.8,3361.5,0.49308855]
[1738329174710,0.02979098,3362.7,3361.6,0.06696591]
[1738329175645,0.8285,3362.8,3361.7,0.02974271]
[1738329175953,0.8285,3362.8,3361.8,0.7612]
[1738329176254,0.7624,3363.2,3361.9,4.04199578]
[1738329176553,5.35,3363.8,3362.3,3.46225306]
[1738329176720,4.43383236,3364.1,3362.4,3.02973536]
[1738329176721,0.9715793,3364.1,3362.4,3.02973536]
[1738329177051,0.0075,3363.7,3362.5,0.06668402]
[1738329177555,0.03729098,3363.7,3362.5,0.06668402]
[1738329177757,0.0075,3363.4,3362.5,0.06668402]
[1738329178049,0.52909952,3363.4,3362.6,0.0634217]
[1738329178225,0.52159952,3363.4,3362.1,0.7561]
[1738329178425,0.8165,3363.5,3362.2,0.09316075]
[1738329178625,0.02979098,3363.4,3362.2,0.09316075]
[1738329178828,0.02979098,3363.4,3362.2,0.0634217]
[1738329179262,0.02979098,3363.4,3362.2,0.09315855]
[1738329179445,0.8165,3363.5,3362.2,0.09315855]
[1738329179614,0.02979098,3363.4,3362.3,0.43362747]
[1738329179964,0.02979098,3363.4,3362.4,0.06339573]
[1738329180111,0.0075,3363.3,3362.4,0.06339573]
[1738329180313,0.0075,3363.3,3362.1,0.7561]
[1738329180314,0.0075,3363.1,3362.1,0.7561]
[1738329180554,0.0075,3363.1,3362.5,0.06339573]
[1738329180756,0.84629098,3363.5,3361.8,0.02974205]
[1738329180926,0.50822944,3363.4,3361.8,0.57974205]
[1738329181256,0.50822944,3363.4,3361.9,0.06132821]
[1738329181565,0.02979098,3363.3,3362.0,0.02973869]
[1738329181859,0.02979098,3363.3,3362.1,0.06133253]
[1738329182164,0.0075,3363.2,3361.7,0.8083]
[1738329182393,0.02979098,3363.1,3362.2,0.06143191]
[1738329182597,0.02979098,3363.1,3361.8,0.72705531]
[1738329182796,0.02979098,3363.1,3362.3,0.06143191]
[1738329182964,0.02979098,3363.1,3361.8,0.72705531]
[1738329183170,0.02979098,3363.1,3362.4,0.06143191]
[1738329183392,0.0075,3363.1,3361.8,0.72705531]
[1738329183597,0.0075,3362.9,3362.5,0.06143191]
[1738329183908,0.0075,3362.9,3361.7,0.8083]
[1738329183909,0.03729098,3362.9,3361.7,0.8083]
[1738329184198,0.03729098,3362.9,3361.8,0.06147945]
[1738329184772,0.02979098,3362.9,3361.8,0.06147945]
[1738329185299,0.8276,3363.0,3361.8,0.06147945]
[1738329185498,0.02979098,3362.9,3361.8,0.06147945]
[1738329185700,0.0075,3362.6,3361.8,0.06147945]
[1738329185888,0.04479098,3362.6,3361.3,0.7642]
[1738329186090,0.24079098,3362.8,3361.4,0.08946527]
[1738329186408,0.0075,3362.5,3361.4,0.05971514]
[1738329186610,0.8064,3362.4,3361.4,0.05971514]
[1738329186906,0.8064,3362.4,3361.3,0.7642]
[1738329187108,0.8064,3362.4,3361.4,0.05971514]
[1738329187270,0.8064,3362.4,3361.3,0.7642]
[1738329187471,0.02979098,3362.3,3361.4,0.05971514]
[1738329187812,0.8064,3362.4,3361.4,0.05971514]
[1738329188011,0.02979098,3362.3,3361.4,0.05971514]
[1738329188574,0.83619098,3362.4,3361.4,0.05971514]
[1738329194672,0.0075,3362.3,3361.4,0.05971514]
[1738329194897,0.0075,3362.1,3360.8,0.7553]
[1738329195120,0.60002916,3361.7,3360.9,0.05988618]
[1738329195318,0.02979098,3361.6,3360.0,0.8122]
[1738329195488,0.21,3361.5,3360.1,0.48733149]
[1738329195675,0.21,3361.6,3360.1,1.03733149]
[1738329196018,3.46975306,3362.1,3360.1,1.03733149]
[1738329196019,1.5390944,3362.2,3360.6,0.7911]
[1738329196221,1.0185,3362.2,3360.8,0.7911]
[1738329196415,0.8085,3362.2,3360.8,3.7911]
[1738329196591,0.59663647,3361.9,3360.9,0.05988618]
[1738329197113,0.8085,3362.2,3360.9,0.05988618]
[1738329197355,0.9722,3362.5,3361.1,0.7768]
[1738329197818,0.60706004,3362.2,3361.1,0.7768]
[1738329197978,0.60706004,3362.2,3361.2,0.05988618]
[1738329198580,0.0075,3362.1,3361.2,0.05988618]
[1738329198803,0.7581,3362.0,3361.2,0.05988618]
[1738329199117,0.48349131,3361.9,3360.8,0.8316]
[1738329199327,0.48349131,3361.9,3360.9,0.05988618]
[1738329200221,0.0075,3361.8,3360.9,0.05988618]
[1738329200921,0.0075,3361.8,3360.5,0.8013]
[1738329201132,0.0075,3361.8,3360.6,0.05709033]
[1738329201305,0.59068841,3361.4,3360.6,0.05709033]
[1738329202427,0.7937,3361.3,3360.6,0.05709033]
[1738329202919,0.2165,3361.2,3360.6,0.05709033]
[1738329203124,0.2165,3361.2,3360.1,0.8077]
[1738329203125,0.0075,3361.0,3360.1,0.8077]
[1738329203626,0.0075,3361.0,3359.3,0.8263]
[1738329204021,0.0075,3361.0,3359.4,0.05774228]
[1738329204324,0.0075,3360.8,3359.4,0.05774228]
[1738329204806,3.8004,3360.9,3359.4,0.05774228]
[1738329205050,0.80689672,3360.8,3359.5,0.7628]
[1738329205542,0.80689672,3360.8,3359.6,0.05774228]
[1738329205947,0.46616611,3361.0,3360.1,0.77]
[1738329206250,0.46616611,3361.0,3360.6,0.0075]
[1738329206565,1.29179131,3361.9,3360.7,0.77]
[1738329206769,0.46601827,3361.6,3360.7,0.82801014]
[1738329206967,1.07202654,3361.6,3360.7,0.82801014]
[1738329208354,0.46601827,3361.6,3361.1,0.5575]
[1738329208557,5.35,3362.8,3361.4,0.8195]
[1738329208867,4.919,3362.9,3361.4,0.8195]
[1738329208868,0.46591637,3362.1,3361.4,0.8195]
[1738329209069,0.46591637,3362.1,3361.6,0.7634]
[1738329209272,5.35,3362.9,3361.8,0.7634]
[1738329209441,0.46589081,3362.8,3361.9,0.05767749]
[1738329209857,0.209,3363.0,3361.9,0.05767749]
[1738329210433,0.60654414,3362.9,3361.9,0.05767749]
[1738329211337,0.60654414,3362.9,3361.8,0.7634]
[1738329211565,0.81554414,3362.9,3361.8,0.7634]
[1738329211880,0.81554414,3362.9,3361.9,0.05702113]
[1738329212183,0.81554414,3362.9,3361.8,0.7634]
[1738329212678,0.81554414,3362.9,3361.9,0.05702113]
[1738329212885,0.81554414,3362.9,3361.8,0.7634]
[1738329213038,0.81554414,3362.9,3361.9,0.05702113]
[1738329213384,0.81554414,3362.9,3361.8,0.7634]
[1738329213690,0.81554414,3362.9,3361.9,0.05702113]
[1738329213877,0.81554414,3362.9,3361.8,0.7634]
[1738329214181,0.81554414,3362.9,3361.9,0.05702113]
[1738329214550,0.81554414,3362.9,3361.8,0.7634]
[1738329214882,0.60654414,3362.9,3361.9,0.06452113]
[1738329215051,0.60654414,3362.9,3362.0,0.8227]
[1738329215251,0.60654414,3362.9,3362.1,0.05693911]
[1738329216931,0.67485608,3363.3,3362.2,0.7948]
[1738329217482,0.67485608,3363.3,3362.3,0.05693911]
[1738329217652,0.46585608,3363.3,3362.2,0.7948]
[1738329217855,0.46585608,3363.3,3362.3,0.05693911]
[1738329218036,0.5915554,3363.2,3362.2,0.7948]
[1738329218377,0.5915554,3363.2,3362.3,0.05693911]
[1738329218729,0.5915554,3363.2,3362.2,0.7948]
[1738329218929,0.5915554,3363.2,3362.3,0.05680531]
[1738329219148,0.5915554,3363.2,3362.2,0.7948]
[1738329219454,0.5915554,3363.2,3362.3,0.05680531]
[1738329219674,0.5915554,3363.2,3362.2,0.7948]
[1738329219973,0.5915554,3363.2,3362.4,0.8209]
[1738329220393,0.5915554,3363.2,3362.5,0.05671036]
[1738329220570,0.46576286,3363.8,3362.8,0.0075]
[1738329220758,0.67605629,3363.7,3362.8,0.0075]
[1738329221083,0.67605629,3363.7,3362.6,0.55]
[1738329221084,0.67605629,3363.7,3362.6,0.0075]
[1738329221255,1.05110171,3363.8,3362.8,0.7858]
[1738329221457,0.16,3364.0,3363.0,0.5575]
[1738329221660,0.368,3364.2,3363.1,0.05669742]
[1738329221858,0.62573093,3364.2,3363.2,0.7783]
[1738329222194,0.62573093,3364.2,3363.2,0.79000011]
[1738329222341,0.62573093,3364.2,3363.4,0.8307]
[1738329222543,0.16,3364.2,3363.6,0.8307]
[1738329222862,0.16,3364.2,3363.7,0.0558776]
[1738329223171,0.16,3364.3,3363.7,0.06226768]
[1738329223376,0.16,3364.3,3363.8,0.00215326]
[1738329223550,0.76045281,3364.3,3363.8,0.00215326]
[1738329223963,0.76045281,3364.3,3363.8,0.00215296]
[1738329224163,0.76045281,3364.3,3363.9,0.0021529]
[1738329225395,0.16,3364.3,3364.0,0.8175]
[1738329225801,0.16,3364.3,3364.1,0.05572663]
[1738329226401,0.16,3364.3,3364.0,0.8175]
[1738329226705,0.16,3364.3,3363.9,0.0021529]
[1738329228063,0.16,3364.3,3364.0,0.05568782]
[1738329228480,0.16,3364.3,3363.9,0.84]
[1738329228675,0.28210565,3364.4,3364.2,0.55]
[1738329228905,0.28210565,3364.4,3364.3,1.39]
[1738329229208,0.01196879,3364.6,3364.5,0.0075]
[1738329229502,0.01196879,3364.6,3364.5,7.84576622]
[1738329229707,0.01196879,3364.6,3364.5,7.87161582]
[1738329230065,0.1696786,3366.4,3364.8,0.8279]
[1738329230268,0.1696786,3366.4,3365.4,3.0]
[1738329230577,0.1696786,3366.4,3366.0,0.7992]
[1738329231115,0.1696786,3366.4,3366.1,0.05487749]
[1738329231281,0.1696786,3366.4,3365.5,0.55]
[1738329231485,0.1696786,3366.4,3365.4,0.8282]
[1738329231486,0.1696786,3366.4,3365.6,0.05487749]
[1738329231806,0.1696786,3366.4,3365.6,0.0075]
[1738329231980,0.1696786,3366.4,3365.7,0.01236774]
[1738329232175,0.1696786,3366.4,3365.8,0.55]
[1738329232419,0.1696786,3366.4,3365.8,0.55370344]
[1738329232600,0.1696786,3366.4,3366.0,0.7992]
[1738329232966,0.1696786,3366.4,3366.1,0.05481719]
[1738329233363,0.1696786,3366.4,3365.6,0.8006]
[1738329233912,0.1696786,3366.4,3365.7,0.05378269]
[1738329234908,0.1696786,3366.4,3365.2,0.8133]
[1738329235214,0.41475396,3366.3,3365.3,0.05378269]
[1738329235564,0.60309363,3366.0,3365.2,0.8133]
[1738329235767,0.60309363,3366.0,3364.5,0.7541]
[1738329236200,0.60309363,3366.0,3364.6,0.05389469]
[1738329236415,0.759,3365.8,3364.6,0.05389469]
[1738329236780,0.759,3365.8,3364.7,0.0075]
[1738329237587,0.759,3365.8,3364.8,0.05389469]
[1738329238335,0.759,3365.8,3364.6,0.0075]
[1738329238476,0.759,3365.8,3364.8,0.0075]
[1738329238676,0.1722403,3365.7,3364.8,0.0075]
[1738329238896,0.1722403,3365.7,3364.9,0.05389469]
[1738329239094,0.1722403,3365.7,3364.6,0.0075]
[1738329239319,0.1722403,3365.7,3364.8,0.0075]
[1738329239723,0.1722403,3365.7,3364.9,0.05389469]
[1738329240041,0.1722403,3365.7,3364.6,0.0075]
[1738329240410,0.0075,3365.6,3364.7,0.05389469]
[1738329240607,0.44759934,3365.6,3364.7,0.05389469]
[1738329240812,0.0075,3365.4,3363.4,1.3827]
[1738329241021,0.0075,3365.4,3363.5,0.0075]
[1738329241234,0.0075,3365.4,3363.5,0.05215084]
[1738329241235,3.46225306,3365.1,3363.5,0.05215084]
[1738329241410,3.7859,3365.0,3363.5,0.05215084]
[1738329241795,3.7859,3365.0,3363.6,0.0075]
[1738329242034,1.37797024,3365.0,3363.8,0.5575]
[1738329242237,0.59207024,3365.0,3363.8,0.58722469]
[1738329242442,0.59207024,3365.0,3364.0,0.0075]
[1738329243136,0.59207024,3365.0,3364.1,0.05234047]
[1738329243338,0.59207024,3365.0,3363.8,0.0075]
[1738329243510,0.59207024,3365.0,3363.9,0.05234047]
[1738329243709,0.40543233,3364.9,3363.9,0.05234047]
[1738329243938,0.40543233,3364.9,3363.7,0.8045]
[1738329244345,0.76,3364.8,3363.7,0.8045]
[1738329244643,0.76,3364.8,3363.8,0.05282736]
[1738329244847,0.97,3364.8,3363.8,0.05282736]
[1738329245001,0.49675026,3364.7,3363.4,0.0075]
[1738329245442,0.49675026,3364.7,3363.5,0.05282736]
[1738329245644,0.60170223,3364.4,3363.5,0.05282736]
[1738329245939,0.60170223,3364.4,3363.3,0.7664]
[1738329246355,0.97,3364.8,3363.4,0.05282736]
[1738329246654,0.43754323,3364.7,3363.4,0.05282736]
[1738329246826,0.0075,3364.6,3363.4,0.05282736]
[1738329247022,0.97,3364.8,3363.4,0.05282736]
[1738329247215,0.58220317,3364.4,3363.5,0.0075]
[1738329247413,0.76,3364.8,3363.5,0.0075]
[1738329247634,0.76,3364.8,3363.6,0.05307309]
[1738329248557,0.969,3364.8,3363.5,0.0075]
[1738329248863,0.58232214,3364.6,3363.5,0.0075]
[1738329249151,0.43744323,3364.7,3363.7,0.0075]
[1738329249152,0.59350463,3364.7,3363.7,0.0075]
[1738329249363,0.59350463,3364.7,3363.8,0.05305153]
[1738329250163,0.76,3364.8,3363.9,0.05301704]
[1738329250372,0.76,3364.8,3363.6,0.0075]
[1738329250529,1.34041874,3364.8,3364.0,0.05301704]
[1738329250857,1.34041874,3364.8,3363.4,0.55]
[1738329251154,1.34041874,3364.8,3363.5,0.0075]
[1738329251452,1.34041874,3364.8,3363.6,0.05300842]
[1738329253219,0.7849,3364.6,3363.6,0.05300842]
[1738329253420,0.7849,3364.4,3363.6,0.05300842]
[1738329253722,0.7849,3364.4,3363.1,0.0075]
[1738329253931,0.7849,3364.4,3363.2,0.05305584]
[1738329254279,0.59492266,3364.0,3363.2,0.05305584]
[1738329254436,0.8264,3364.9,3363.6,0.0075]
[1738329254638,0.8264,3364.9,3363.7,0.55]
[1738329254986,0.8264,3364.9,3363.8,0.0075]
[1738329255150,0.8264,3365.3,3364.0,0.5575]
[1738329255352,0.8264,3365.3,3364.2,0.0075]
[1738329255988,0.8264,3365.3,3364.3,0.05337917]
[1738329256373,0.60711492,3365.0,3364.3,0.05337917]
[1738329258154,0.60711492,3365.0,3364.0,0.5575]
[1738329258354,0.60711492,3365.0,3364.2,0.0075]
[1738329258674,0.8264,3365.3,3364.2,0.0075]
[1738329258975,0.8264,3365.3,3364.3,0.053155]
[1738329259361,0.8264,3365.3,3364.4,0.5575]
[1738329259563,0.7977,3365.7,3364.6,0.5575]
[1738329259762,0.7977,3365.7,3364.8,0.55]
[1738329259967,0.61477,3365.6,3364.6,0.55]
[1738329260285,0.61477,3365.6,3364.8,0.55]
[1738329260654,0.61477,3365.6,3364.6,0.5575]
[1738329260977,0.7955,3366.0,3365.0,0.0075]
[1738329261156,0.7955,3366.0,3365.2,0.0075]
[1738329261356,0.7955,3366.0,3365.3,0.05293951]
[1738329261553,0.208,3366.2,3365.3,0.05293951]
[1738329261757,0.59132399,3366.1,3365.2,0.5575]
[1738329262068,0.59132399,3366.1,3365.3,0.05293951]
[1738329262454,0.59132399,3366.1,3365.2,0.0075]
[1738329262654,0.8054,3366.3,3365.3,0.05279302]
[1738329262857,0.1696786,3366.4,3365.4,0.55]
[1738329263187,0.58121487,3366.3,3365.5,0.05275424]
[1738329263538,0.58121487,3366.3,3365.2,0.55]
[1738329263887,0.7634,3366.2,3365.6,0.05275424]
[1738329264100,0.49765465,3366.1,3364.9,0.55]
[1738329264391,0.49765465,3366.1,3365.0,0.05275424]
[1738329264879,3.46225306,3366.0,3365.0,0.05275424]
[1738329265125,0.0075,3365.8,3365.0,0.05275424]
[1738329265290,0.7952,3365.7,3364.4,0.8087]
[1738329265585,0.58644783,3365.4,3365.1,0.05212928]
[1738329265889,0.58644783,3365.4,3364.4,0.8087]
[1738329266244,0.58644783,3365.4,3365.2,0.05212928]
[1738329266447,0.58644783,3365.4,3364.5,0.5575]
[1738329266647,0.7952,3365.7,3364.5,0.57083922]
[1738329266863,0.58603157,3365.6,3364.7,0.5575]
[1738329267292,0.58603157,3365.6,3364.5,0.55]
[1738329267454,0.58603157,3365.6,3364.8,0.05212928]
[1738329267660,0.58603157,3365.6,3364.5,0.55]
[1738329267863,0.58603157,3365.6,3364.9,0.05212928]
[1738329268064,0.21278769,3365.5,3364.4,0.8087]
[1738329268398,0.8237,3365.4,3363.8,0.8062]
[1738329268696,2.68850617,3365.3,3363.9,0.55]
[1738329268906,2.68850617,3365.3,3363.9,0.60212928]
[1738329269961,2.68850617,3365.0,3363.9,0.05212928]
[1738329270155,0.8124,3364.8,3363.8,0.8062]
[1738329270418,0.8124,3364.8,3364.0,0.05212928]
[1738329270700,4.0441774,3364.5,3363.9,0.05026752]
[1738329270864,3.46255771,3364.0,3363.1,0.55]
[1738329271064,3.46255771,3364.0,3363.0,0.7647]
[1738329271507,0.7516,3363.9,3362.7,0.55]
[1738329271711,0.7516,3363.9,3362.6,0.7529]
[1738329272203,0.7876,3363.7,3362.7,0.04837267]
[1738329272358,3.46255771,3363.6,3362.7,0.04837267]
[1738329272565,3.46255771,3363.6,3362.3,0.8179]
[1738329272791,3.46255771,3363.6,3362.4,0.04837267]
[1738329273109,3.46255771,3363.3,3362.4,0.04837267]
[1738329273311,0.42188577,3363.2,3362.0,0.55]
[1738329273603,0.209,3363.1,3362.1,0.04837267]
[1738329273802,1.42903356,3363.0,3362.1,0.04837267]
[1738329274007,1.42903356,3363.0,3361.9,0.8119]
[1738329274314,0.20599193,3362.9,3361.9,0.8119]
[1738329274663,0.20599193,3362.9,3362.0,0.04837267]
[1738329275414,3.8376,3362.8,3361.3,0.8258]
[1738329275563,0.8301,3362.4,3361.3,0.8258]
[1738329275915,0.43676577,3362.3,3360.9,0.8123]
[1738329276079,0.60101745,3362.2,3361.1,0.0075]
[1738329276281,0.8301,3362.4,3361.1,0.0075]
[1738329276516,0.8301,3362.4,3361.3,0.0075]
[1738329276826,0.8301,3362.4,3361.5,0.55]
[1738329276995,0.8301,3362.4,3361.6,0.7554]
[1738329277195,0.7603,3362.8,3361.7,0.55]
[1738329277396,0.58846279,3363.1,3362.0,0.0075]